[Event "World Senior chT-65 2019"]
[Site "Rhodes"]
[Date "2019.04.18"]
[Round "3.46"]
[White "Seret, Jean-Luc"]
[Black "Carlile, Orison"]
[Result "1/2-1/2"]
[ECO "C00"]
[WhiteElo "2332"]
[BlackElo "2037"]
[PlyCount "81"]
[EventDate "2019.04.16"]
[EventType "team-tourn"]
[EventCountry "GRE"]
[TimeControl "40/5400+30:1800+30"]

1. e4 {[%emt 0:00:00]} e6 {[%emt 0:00:00]} 2. d3 {[%emt 0:00:08]} d5 {[%emt 0:00:00]} 3. Nd2 {[%emt 0:01:41]} Nc6 {[%emt 0:02:00]} 4. Ngf3 {[%emt 0:01:10]} Nf6 {[%emt 0:00:20]} 5. c3 {[%emt 0:01:18]} dxe4 {[%emt 0:03:50]} 6. dxe4 {[%emt 0:00:48]} Bc5 {[%emt 0:00:45]} 7. Bb5 {[%emt 0:01:50]} Bd7 {[%emt 0:02:32]} 8. Qe2 {[%emt 0:05:12]} a6 {[%emt 0:04:09]} 9. Bd3 {[%emt 0:02:26]} e5 {[%emt 0:03:14]} 10. Nc4 {[%emt 0:09:24]} Ng4 {[%emt 0:05:44]} 11. O-O {[%emt 0:00:45]} b5 {[%emt 0:06:46]} 12. Ne3 {[%emt 0:00:47]} Nxe3 {[%emt 0:00:34]} 13. Bxe3 {[%emt 0:01:31]} Bxe3 {[%emt 0:00:50]} 14. Qxe3 {[%emt 0:00:13]} Qe7 {[%emt 0:05:24]} 15. b4 {[%emt 0:05:12]} O-O {[%emt 0:02:13]} 16. a4 {[%emt 0:00:51]} Rab8 {[%emt 0:13:14]} 17. axb5 {[%emt 0:03:31]} axb5 {[%emt 0:00:12]} 18. Nd2 {[%emt 0:00:13]} Nd8 {[%emt 0:05:14]} 19. Nb3 {[%emt 0:01:01]} Ne6 {[%emt 0:00:30]} 20. Ra7 {[%emt 0:00:41]} Rfc8 {[%emt 0:04:09]} 21. Rd1 {[%emt 0:02:43]} Bc6 {[%emt 0:05:41]} 22. Be2 {[%emt 0:08:51]} Rd8 {[%emt 0:07:01]} 23. Raa1 {[%emt 0:00:00]} Rxd1+ {[%emt 0:03:20]} 24. Rxd1 {[%emt 0:00:00]} Rd8 {[%emt 0:00:52]} 25. Rxd8+ {[%emt 0:00:00]} Qxd8 {[%emt 0:00:11]} 26. g3 {[%emt 0:01:30]} h6 {[%emt 0:04:25]} 27. Na5 {[%emt 0:01:35]} Qd6 {[%emt 0:03:10]} 28. h4 {[%emt 0:00:24]} Bd7 {[%emt 0:01:28]} 29. Bg4 {[%emt 0:03:01]} Kh7 {[%emt 0:01:51]} 30. Nb7 {[%emt 0:02:53]} Qc6 {[%emt 0:02:13]} 31. Bf5+ {[%emt 0:01:15]} g6 {[%emt 0:00:27]} 32. Bxe6 {[%emt 0:00:05]} Qxe6 {[%emt 0:01:08]} 33. Nc5 {[%emt 0:03:46]} Qg4 {[%emt 0:02:18]} 34. Qd3 {[%emt 0:06:58]} Bc6 {[%emt 0:03:14]} 35. Kh2 {[%emt 0:05:04]} Qc8 {[%emt 0:01:27]} 36. f3 {[%emt 0:02:05]} h5 {[%emt 0:01:47]} 37. Qd2 {[%emt 0:04:11]} Kg7 {[%emt 0:00:48]} 38. Qg5 {[%emt 0:00:28]} f6 {[%emt 0:02:04]} 39. Qd2 {[%emt 0:00:02]} Qg8 {[%emt 0:03:06]} 40. g4 {[%emt 0:00:00]} hxg4 {[%emt 0:00:00]} 41. fxg4 {[%emt 0:00:52]} 1/2-1/2

[Event "World Senior chT-65 2019"]
[Site "Rhodes"]
[Date "2019.04.18"]
[Round "3.47"]
[White "Gibson, John F."]
[Black "Giffard, Nicolas"]
[Result "1-0"]
[ECO "D35"]
[WhiteElo "1818"]
[BlackElo "2252"]
[PlyCount "111"]
[EventDate "2019.04.16"]
[EventType "team-tourn"]
[EventCountry "GRE"]
[TimeControl "40/5400+30:1800+30"]

1. c4 {[%emt 0:00:00]} Nf6 {[%emt 0:00:26]} 2. Nc3 {[%emt 0:00:00]} e6 {[%emt 0:00:15]} 3. g3 {[%emt 0:00:00]} d5 {[%emt 0:00:09]} 4. cxd5 {[%emt 0:01:16]} exd5 {[%emt 0:00:08]} 5. Bg2 {[%emt 0:01:56]} c6 {[%emt 0:02:52]} 6. d4 {[%emt 0:02:53]} Bd6 {[%emt 0:00:26]} 7. Nf3 {[%emt 0:00:30]} O-O {[%emt 0:00:54]} 8. O-O {[%emt 0:00:11]} Re8 {[%emt 0:00:18]} 9. a3 {[%emt 0:04:21]} a5 {[%emt 0:00:37]} 10. Re1 {[%emt 0:02:50]} h6 {[%emt 0:02:49]} 11. Bd2 {[%emt 0:01:53]} Bf5 {[%emt 0:02:22]} 12. Qc1 {[%emt 0:06:10]} Nbd7 {[%emt 0:04:49]} 13. Bf4 {[%emt 0:00:25]} Bf8 {[%emt 0:00:29]} 14. h3 {[%emt 0:03:51]} g5 {[%emt 0:06:22]} 15. Bd2 {[%emt 0:01:16]} a4 {[%emt 0:02:20]} 16. h4 {[%emt 0:13:03]} g4 {[%emt 0:00:57]} 17. Ne5 {[%emt 0:00:14]} Nxe5 {[%emt 0:00:19]} 18. dxe5 {[%emt 0:00:09]} Rxe5 {[%emt 0:00:09]} 19. Bxh6 {[%emt 0:04:18]} Bxh6 {[%emt 0:00:18]} 20. Qxh6 {[%emt 0:00:08]} Bg6 {[%emt 0:00:16]} 21. Qf4 {[%emt 0:02:44]} Rf5 {[%emt 0:08:12]} 22. Qb4 {[%emt 0:03:31]} d4 {[%emt 0:10:28]} 23. Nxa4 {[%emt 0:11:21]} Rfa5 {[%emt 0:01:19]} 24. b3 {[%emt 0:14:11]} Rb5 {[%emt 0:03:33]} 25. Qc4 {[%emt 0:00:21]} Qd6 {[%emt 0:00:10]} 26. Red1 {[%emt 0:02:21]} Rd8 {[%emt 0:00:07]} 27. b4 {[%emt 0:04:03]} Re5 {[%emt 0:00:46]} 28. Nc5 {[%emt 0:01:48]} b5 {[%emt 0:00:05]} 29. Qa2 {[%emt 0:02:16]} Qe7 {[%emt 0:00:15]} 30. Rd2 {[%emt 0:01:35]} Nd5 {[%emt 0:00:11]} 31. Re1 {[%emt 0:07:33]} Nc3 {[%emt 0:07:08]} 32. Qb2 {[%emt 0:00:12]} Qf6 {[%emt 0:00:25]} 33. Nd3 {[%emt 0:04:37]} Bxd3 {[%emt 0:02:32]} 34. Rxd3 {[%emt 0:00:08]} Rd6 {[%emt 0:13:51]} 35. e4 {[%emt 0:03:37]} dxe3 {[%emt 0:02:12]} 36. Rdxe3 {[%emt 0:00:16]} Rxe3 {[%emt 0:03:18]} 37. Rxe3 {[%emt 0:00:03]} Nd1 {[%emt 0:00:16]} 38. Qxf6 {[%emt 0:00:35]} Rxf6 {[%emt 0:00:06]} 39. Re2 {[%emt 0:00:09]} Rd6 {[%emt 0:02:32]} 40. Rc2 {[%emt 0:00:00]} Rd3 {[%emt 0:00:00]} 41. Bxc6 {[%emt 0:00:48]} Rxa3 {[%emt 0:00:12]} 42. Bxb5 {[%emt 0:00:17]} Rb3 {[%emt 0:00:11]} 43. Rc4 {[%emt 0:00:19]} f5 {[%emt 0:00:05]} 44. Bd7 {[%emt 0:00:53]} Rf3 {[%emt 0:00:15]} 45. Rc2 {[%emt 0:00:23]} Kg7 {[%emt 0:00:09]} 46. b5 {[%emt 0:00:33]} Kf6 {[%emt 0:00:24]} 47. b6 {[%emt 0:00:58]} Rb3 {[%emt 0:00:07]} 48. Rc6+ {[%emt 0:00:36]} Ke5 {[%emt 0:00:05]} 49. h5 {[%emt 0:00:51]} Nc3 {[%emt 0:00:06]} 50. h6 {[%emt 0:00:53]} Ne2+ {[%emt 0:00:05]} 51. Kf1 {[%emt 0:00:15]} Nd4 {[%emt 0:00:06]} 52. h7 {[%emt 0:01:00]} Rb1+ {[%emt 0:00:06]} 53. Kg2 {[%emt 0:00:17]} Nf3 {[%emt 0:00:05]} 54. h8=Q+ {[%emt 0:00:40]} Kd5 {[%emt 0:00:06]} 55. Qg8+ {[%emt 0:00:34]} Ke5 {[%emt 0:00:06]} 56. Qe6+ {[%emt 0:00:27] Kd5 [%emt 00:00:14]} 1-0

[Event "World Senior chT-65 2019"]
[Site "Rhodes"]
[Date "2019.04.18"]
[Round "3.48"]
[White "Boudre, Jean-Pierre"]
[Black "Lynch, Peter J."]
[Result "1-0"]
[ECO "B50"]
[WhiteElo "2246"]
[BlackElo "1696"]
[PlyCount "55"]
[EventDate "2019.04.16"]
[EventType "team-tourn"]
[EventCountry "GRE"]
[TimeControl "40/5400+30:1800+30"]

1. e4 {[%emt 0:00:00]} c5 {[%emt 0:00:00]} 2. Nf3 {[%emt 0:00:00]} d6 {[%emt 0:00:00]} 3. c3 {[%emt 0:02:14]} Nf6 {[%emt 0:00:43]} 4. h3 {[%emt 0:00:57]} Nc6 {[%emt 0:00:43]} 5. Bd3 {[%emt 0:03:32]} g6 {[%emt 0:02:22]} 6. O-O {[%emt 0:00:22]} Bg7 {[%emt 0:00:42]} 7. Bc2 {[%emt 0:00:25]} O-O {[%emt 0:01:54]} 8. d4 {[%emt 0:00:32]} cxd4 {[%emt 0:00:50]} 9. cxd4 {[%emt 0:00:05]} Qc7 {[%emt 0:02:23]} 10. Nc3 {[%emt 0:00:16]} a6 {[%emt 0:00:42]} 11. Bg5 {[%emt 0:05:29]} Re8 {[%emt 0:09:42]} 12. Rc1 {[%emt 0:11:56]} e5 {[%emt 0:15:33]} 13. dxe5 {[%emt 0:19:08]} dxe5 {[%emt 0:00:43]} 14. Bxf6 {[%emt 0:06:30]} Bxf6 {[%emt 0:00:27]} 15. Nd5 {[%emt 0:00:04]} Qd8 {[%emt 0:00:24]} 16. Ba4 {[%emt 0:00:06]} Re6 {[%emt 0:03:42]} 17. Qd2 {[%emt 0:07:58]} Rd6 {[%emt 0:07:01]} 18. Rfd1 {[%emt 0:01:21]} Kg7 {[%emt 0:00:29]} 19. Qe3 {[%emt 0:03:59]} b5 {[%emt 0:08:57]} 20. Bb3 {[%emt 0:03:25]} Bb7 {[%emt 0:03:04]} 21. Nxf6 {[%emt 0:01:49]} Qxf6 {[%emt 0:02:25]} 22. Rxd6 {[%emt 0:05:06]} Qxd6 {[%emt 0:00:22]} 23. Qb6 {[%emt 0:00:05]} Qd7 {[%emt 0:08:45]} 24. Ng5 {[%emt 0:01:27]} Rc8 {[%emt 0:08:51]} 25. Nxf7 {[%emt 0:03:55]} Nd4 {[%emt 0:03:55]} 26. Rd1 {[%emt 0:00:16]} Qe7 {[%emt 0:13:55]} 27. Nd6 {[%emt 0:06:39]} Rc7 {[%emt 0:02:32]} 28. Qxc7 {[%emt 0:00:19]} 1-0

[Event "World Senior chT-65 2019"]
[Site "Rhodes"]
[Date "2019.04.19"]
[Round "4.2"]
[White "Rantanen, Yrjo A."]
[Black "Karasev, Vladimir I"]
[Result "1-0"]
[ECO "C02"]
[WhiteElo "2283"]
[BlackElo "2281"]
[PlyCount "129"]
[EventDate "2019.04.16"]
[EventType "team-tourn"]
[EventCountry "GRE"]
[TimeControl "40/5400+30:1800+30"]

1. e4 {[%emt 0:00:00]} c5 {[%emt 0:00:00]} 2. Nf3 {[%emt 0:00:00]} e6 {[%emt 0:00:00]} 3. c3 {[%emt 0:00:00]} d5 {[%emt 0:04:52]} 4. e5 {[%emt 0:00:12]} Nc6 {[%emt 0:06:59]} 5. d4 {[%emt 0:00:32]} Nge7 {[%emt 0:01:48]} 6. Bd3 {[%emt 0:04:52]} Nf5 {[%emt 0:02:03]} 7. Bxf5 {[%emt 0:08:16]} exf5 {[%emt 0:00:02]} 8. O-O {[%emt 0:00:43]} Be6 {[%emt 0:01:28]} 9. dxc5 {[%emt 0:01:29]} Bxc5 {[%emt 0:00:04]} 10. Nbd2 {[%emt 0:00:12]} O-O {[%emt 0:03:23]} 11. Nb3 {[%emt 0:00:19]} Bb6 {[%emt 0:00:31]} 12. Re1 {[%emt 0:00:32]} Re8 {[%emt 0:02:25]} 13. Bg5 {[%emt 0:02:44]} Qc7 {[%emt 0:10:33]} 14. a4 {[%emt 0:04:50]} h6 {[%emt 0:02:53]} 15. Bf4 {[%emt 0:01:01]} a6 {[%emt 0:17:33]} 16. Qd2 {[%emt 0:10:46]} Kh7 {[%emt 0:00:16]} 17. Be3 {[%emt 0:03:03]} Bxe3 {[%emt 0:05:58]} 18. Qxe3 {[%emt 0:00:21]} Rad8 {[%emt 0:06:13]} 19. Nbd4 {[%emt 0:07:04]} Bc8 {[%emt 0:01:05]} 20. Nxc6 {[%emt 0:00:19]} Qxc6 {[%emt 0:01:42]} 21. a5 {[%emt 0:02:02]} g5 {[%emt 0:05:38]} 22. Nd4 {[%emt 0:05:24]} Qg6 {[%emt 0:00:04]} 23. f4 {[%emt 0:00:35]} Re7 {[%emt 0:05:31]} 24. Ra4 {[%emt 0:08:04]} f6 {[%emt 0:07:01]} 25. e6 {[%emt 0:05:39]} Rde8 {[%emt 0:01:34]} 26. Rb4 {[%emt 0:00:50]} gxf4 {[%emt 0:06:44]} 27. Qxf4 {[%emt 0:04:01]} Bxe6 {[%emt 0:01:37]} 28. Rxe6 {[%emt 0:01:49]} Rxe6 {[%emt 0:00:03]} 29. Nxe6 {[%emt 0:00:14]} Rxe6 {[%emt 0:00:30]} 30. Rxb7+ {[%emt 0:00:11]} Kg8 {[%emt 0:00:22]} 31. Kf2 {[%emt 0:02:11]} Re8 {[%emt 0:03:28]} 32. Rb8 {[%emt 0:02:49]} Qf7 {[%emt 0:01:59]} 33. Rxe8+ {[%emt 0:00:18]} Qxe8 {[%emt 0:00:02]} 34. Qxf5 {[%emt 0:00:12]} Qf7 {[%emt 0:00:59]} 35. Qc8+ {[%emt 0:00:15]} Kg7 {[%emt 0:00:03]} 36. Qxa6 {[%emt 0:00:09]} Qc7 {[%emt 0:00:19]} 37. g3 {[%emt 0:00:25]} Qc5+ {[%emt 0:00:27]} 38. Kg2 {[%emt 0:00:52]} Qe7 {[%emt 0:00:59]} 39. Qd3 {[%emt 0:00:28]} Qb7 {[%emt 0:00:11]} 40. b4 {[%emt 0:00:00]} d4+ {[%emt 0:00:00]} 41. Qf3 {[%emt 0:04:28]} Qd7 {[%emt 0:05:17]} 42. cxd4 {[%emt 0:00:34]} Qxd4 {[%emt 0:00:04]} 43. a6 {[%emt 0:01:38]} h5 {[%emt 0:02:46]} 44. Qxh5 {[%emt 0:05:58]} Qxb4 {[%emt 0:02:06]} 45. Qe2 {[%emt 0:02:14]} Qa4 {[%emt 0:02:40]} 46. h4 {[%emt 0:02:08]} Qc6+ {[%emt 0:07:48]} 47. Kh2 {[%emt 0:00:20]} Qa4 {[%emt 0:01:06]} 48. Kh3 {[%emt 0:04:31]} Qa1 {[%emt 0:01:29]} 49. Qd3 {[%emt 0:04:38]} Qh1+ {[%emt 0:01:37]} 50. Kg4 {[%emt 0:00:02]} Qa1 {[%emt 0:01:27]} 51. h5 {[%emt 0:02:13]} Qa4+ {[%emt 0:01:17]} 52. Kh3 {[%emt 0:08:29]} Qa1 {[%emt 0:00:31]} 53. Kg2 {[%emt 0:04:04]} Qa2+ {[%emt 0:02:24]} 54. Kf3 {[%emt 0:09:56]} Qa1 {[%emt 0:00:12]} 55. g4 {[%emt 0:01:29]} Qh1+ {[%emt 0:00:40]} 56. Kf2 {[%emt 0:01:00]} Qh2+ {[%emt 0:00:20]} 57. Ke1 {[%emt 0:00:37]} Qe5+ {[%emt 0:01:33]} 58. Qe2 {[%emt 0:00:58]} Qd4 {[%emt 0:02:13]} 59. Qe7+ {[%emt 0:04:02]} Kh6 {[%emt 0:00:27]} 60. a7 {[%emt 0:00:32]} Qa1+ {[%emt 0:01:19]} 61. Kf2 {[%emt 0:00:28]} Qa2+ {[%emt 0:02:09]} 62. Kg3 {[%emt 0:01:13]} Qb3+ {[%emt 0:01:22]} 63. Kh4 {[%emt 0:01:04]} Qb2 {[%emt 0:01:47]} 64. g5+ {[%emt 0:00:26]} fxg5+ {[%emt 0:00:04]} 65. Qxg5+ {[%emt 0:00:13]} 1-0

[Event "World Senior chT-65 2019"]
[Site "Rhodes"]
[Date "2019.04.19"]
[Round "4.3"]
[White "Shushpanov, Vladimir"]
[Black "Hurme, Harri"]
[Result "1-0"]
[ECO "D91"]
[WhiteElo "2180"]
[BlackElo "2148"]
[PlyCount "135"]
[EventDate "2019.04.16"]
[EventType "team-tourn"]
[EventCountry "GRE"]
[TimeControl "40/5400+30:1800+30"]

1. d4 {[%emt 0:00:00]} Nf6 {[%emt 0:00:00]} 2. c4 {[%emt 0:00:00]} g6 {[%emt 0:00:00]} 3. Nc3 {[%emt 0:00:01]} d5 {[%emt 0:00:00]} 4. Nf3 {[%emt 0:00:12]} Bg7 {[%emt 0:00:00]} 5. Bg5 {[%emt 0:00:09]} Ne4 {[%emt 0:00:42]} 6. cxd5 {[%emt 0:00:10]} Nxg5 {[%emt 0:00:07]} 7. Nxg5 {[%emt 0:00:08]} e6 {[%emt 0:00:34]} 8. Nf3 {[%emt 0:00:10]} exd5 {[%emt 0:00:15]} 9. e3 {[%emt 0:00:07]} O-O {[%emt 0:01:45]} 10. b4 {[%emt 0:00:18]} a6 {[%emt 0:05:30]} 11. Bd3 {[%emt 0:02:13]} Nc6 {[%emt 0:02:23]} 12. a3 {[%emt 0:06:09]} Ne7 {[%emt 0:00:46]} 13. Qb3 {[%emt 0:04:50]} c6 {[%emt 0:01:02]} 14. a4 {[%emt 0:07:03]} Bf5 {[%emt 0:02:00]} 15. Bxf5 {[%emt 0:01:02]} Nxf5 {[%emt 0:00:03]} 16. a5 {[%emt 0:00:54]} Qe7 {[%emt 0:06:01]} 17. O-O {[%emt 0:00:24]} Nd6 {[%emt 0:01:54]} 18. Nd2 {[%emt 0:05:26]} h5 {[%emt 0:03:10]} 19. Na4 {[%emt 0:00:43]} Kh7 {[%emt 0:01:18]} 20. Nc5 {[%emt 0:01:02]} f5 {[%emt 0:02:08]} 21. f4 {[%emt 0:07:58]} Bf6 {[%emt 0:04:41]} 22. Nf3 {[%emt 0:06:52]} Rae8 {[%emt 0:03:50]} 23. Ne5 {[%emt 0:04:16]} g5 {[%emt 0:05:16]} 24. Qd3 {[%emt 0:06:24]} Bxe5 {[%emt 0:05:24]} 25. fxe5 {[%emt 0:02:19]} Ne4 {[%emt 0:00:12]} 26. Rf3 {[%emt 0:03:19]} Kg6 {[%emt 0:04:44]} 27. Raf1 {[%emt 0:01:20]} Nxc5 {[%emt 0:00:58]} 28. bxc5 {[%emt 0:00:26]} Qe6 {[%emt 0:00:21]} 29. h3 {[%emt 0:01:13]} h4 {[%emt 0:01:01]} 30. g4 {[%emt 0:06:30]} hxg3 {[%emt 0:00:11]} 31. Rxg3 {[%emt 0:00:13]} Rh8 {[%emt 0:00:53]} 32. Rf4 {[%emt 0:01:35]} Rh5 {[%emt 0:02:11]} 33. h4 {[%emt 0:05:33]} Reh8 {[%emt 0:01:18]} 34. Rfg4 {[%emt 0:02:04]} Kh6 {[%emt 0:06:38]} 35. Rxg5 {[%emt 0:02:53]} Rxg5 {[%emt 0:00:06]} 36. Rxg5 {[%emt 0:01:32]} Rg8 {[%emt 0:00:07]} 37. Qb1 {[%emt 0:02:14]} Rxg5+ {[%emt 0:01:12]} 38. hxg5+ {[%emt 0:00:09]} Kxg5 {[%emt 0:00:14]} 39. Qxb7 {[%emt 0:00:34]} f4 {[%emt 0:00:33]} 40. Qg7+ {[%emt 0:00:00]} Kf5 {[%emt 0:00:00]} 41. Qf8+ {[%emt 0:03:03]} Ke4 {[%emt 0:02:28]} 42. Qxf4+ {[%emt 0:00:12]} Kd3 {[%emt 0:00:06]} 43. Kf2 {[%emt 0:01:22]} Qh3 {[%emt 0:03:06]} 44. Qg3 {[%emt 0:01:01]} Qh6 {[%emt 0:00:44]} 45. Qf4 {[%emt 0:01:16]} Qh3 {[%emt 0:00:09]} 46. Qg5 {[%emt 0:02:13]} Qh2+ {[%emt 0:01:05]} 47. Kf3 {[%emt 0:00:25]} Qh3+ {[%emt 0:03:23]} 48. Qg3 {[%emt 0:05:23]} Qf5+ {[%emt 0:00:59]} 49. Kg2 {[%emt 0:00:43]} Ke2 {[%emt 0:01:36]} 50. Qf4 {[%emt 0:00:48]} Qg6+ {[%emt 0:00:27]} 51. Kh3 {[%emt 0:00:18]} Qh5+ {[%emt 0:01:50]} 52. Kg3 {[%emt 0:00:30]} Qe8 {[%emt 0:04:25]} 53. Qh6 {[%emt 0:03:18]} Qg8+ {[%emt 0:02:08]} 54. Kh4 {[%emt 0:01:17]} Qg2 {[%emt 0:04:18]} 55. Qf4 {[%emt 0:02:53]} Kd3 {[%emt 0:01:21]} 56. e6 {[%emt 0:01:51]} Qg6 {[%emt 0:01:21]} 57. Qf7 {[%emt 0:02:38]} Qe4+ {[%emt 0:02:21]} 58. Kh5 {[%emt 0:00:11]} Qxe3 {[%emt 0:07:29]} 59. e7 {[%emt 0:00:48]} Qh3+ {[%emt 0:01:17]} 60. Kg6 {[%emt 0:00:40]} Qg4+ {[%emt 0:01:06]} 61. Kh7 {[%emt 0:01:46]} Qh4+ {[%emt 0:01:04]} 62. Kg8 {[%emt 0:00:23]} Qg4+ {[%emt 0:01:22]} 63. Kf8 {[%emt 0:00:26]} Qxd4 {[%emt 0:01:34]} 64. Qf1+ {[%emt 0:01:11]} Kc2 {[%emt 0:00:32]} 65. e8=Q {[%emt 0:00:36]} Qxc5+ {[%emt 0:01:18]} 66. Kg8 {[%emt 0:00:41]} d4 {[%emt 0:01:36]} 67. Qee2+ {[%emt 0:00:31]} Kb3 {[%emt 0:00:16]} 68. Qb1+ {[%emt 0:00:41]} 1-0

[Event "World Senior chT-65 2019"]
[Site "Rhodes"]
[Date "2019.04.19"]
[Round "4.4"]
[White "Kivimaki, Jaakko"]
[Black "Blechzin, Igor"]
[Result "1-0"]
[ECO "D03"]
[WhiteElo "2165"]
[BlackElo "2210"]
[PlyCount "65"]
[EventDate "2019.04.16"]
[EventType "team-tourn"]
[EventCountry "GRE"]
[TimeControl "40/5400+30:1800+30"]

1. Nf3 {[%emt 0:00:00]} Nf6 {[%emt 0:01:16]} 2. d4 {[%emt 0:00:00]} e6 {[%emt 0:00:26]} 3. Bg5 {[%emt 0:00:00]} d5 {[%emt 0:01:40]} 4. Nbd2 {[%emt 0:00:22]} c5 {[%emt 0:02:07]} 5. e3 {[%emt 0:00:08]} Nc6 {[%emt 0:00:52]} 6. c3 {[%emt 0:00:16]} Be7 {[%emt 0:01:50]} 7. Bd3 {[%emt 0:00:10]} b6 {[%emt 0:03:05]} 8. O-O {[%emt 0:00:32]} Qc7 {[%emt 0:04:36]} 9. Re1 {[%emt 0:19:23]} O-O {[%emt 0:03:28]} 10. Bf4 {[%emt 0:05:18]} Bd6 {[%emt 0:04:54]} 11. Bxd6 {[%emt 0:02:15]} Qxd6 {[%emt 0:00:53]} 12. e4 {[%emt 0:00:19]} dxe4 {[%emt 0:01:47]} 13. Nxe4 {[%emt 0:00:24]} Nxe4 {[%emt 0:09:56]} 14. Rxe4 {[%emt 0:00:52]} f5 {[%emt 0:08:42]} 15. Rh4 {[%emt 0:09:29]} Qe7 {[%emt 0:03:50]} 16. dxc5 {[%emt 0:03:18]} bxc5 {[%emt 0:00:30]} 17. Qa4 {[%emt 0:05:26]} Bb7 {[%emt 0:02:59]} 18. Re1 {[%emt 0:07:58]} e5 {[%emt 0:16:08]} 19. Bb5 {[%emt 0:12:57]} Nd4 {[%emt 0:17:19]} 20. cxd4 {[%emt 0:00:40]} Bxf3 {[%emt 0:00:08]} 21. dxe5 {[%emt 0:01:04]} Qg5 {[%emt 0:02:29]} 22. g3 {[%emt 0:02:09]} Qd2 {[%emt 0:01:33]} 23. Qc4+ {[%emt 0:04:18]} Kh8 {[%emt 0:01:56]} 24. Qc1 {[%emt 0:00:24]} Qd5 {[%emt 0:00:46]} 25. Bc4 {[%emt 0:01:50]} Qc6 {[%emt 0:00:26]} 26. Bf1 {[%emt 0:00:48]} Rae8 {[%emt 0:01:38]} 27. Rc4 {[%emt 0:00:47]} Qd5 {[%emt 0:01:27]} 28. Rxc5 {[%emt 0:00:47]} Qxa2 {[%emt 0:00:04]} 29. Qc3 {[%emt 0:00:33]} Ba8 {[%emt 0:05:14]} 30. Bc4 {[%emt 0:01:16]} Qa4 {[%emt 0:00:09]} 31. Bb5 {[%emt 0:00:11]} Qg4 {[%emt 0:00:44]} 32. Bxe8 {[%emt 0:00:14]} Rxe8 {[%emt 0:00:19]} 33. Rc8 {[%emt 0:00:19]} 1-0

[Event "World Senior chT-65 2019"]
[Site "Rhodes"]
[Date "2019.04.19"]
[Round "4.7"]
[White "Rashkovsky, Nukhim N"]
[Black "Kiefer, Gerhard"]
[Result "1/2-1/2"]
[ECO "A49"]
[WhiteElo "2488"]
[BlackElo "2279"]
[PlyCount "73"]
[EventDate "2019.04.16"]
[EventType "team-tourn"]
[EventCountry "GRE"]
[TimeControl "40/5400+30:1800+30"]

1. d4 {[%emt 0:00:00]} Nf6 {[%emt 0:00:00]} 2. Nf3 {[%emt 0:00:00]} g6 {[%emt 0:00:00]} 3. g3 {[%emt 0:00:54]} Bg7 {[%emt 0:00:00]} 4. Bg2 {[%emt 0:00:05]} O-O {[%emt 0:00:00]} 5. O-O {[%emt 0:00:05]} d6 {[%emt 0:00:00]} 6. a4 {[%emt 0:01:50]} a5 {[%emt 0:00:39]} 7. Re1 {[%emt 0:00:55]} Nc6 {[%emt 0:01:29]} 8. e4 {[%emt 0:15:22]} e5 {[%emt 0:00:55]} 9. d5 {[%emt 0:02:14]} Nb4 {[%emt 0:00:42]} 10. Na3 {[%emt 0:03:37]} Ne8 {[%emt 0:08:32]} 11. c3 {[%emt 0:05:30]} Na6 {[%emt 0:00:11]} 12. Nc4 {[%emt 0:00:11]} b6 {[%emt 0:00:42]} 13. Bd2 {[%emt 0:04:11]} Bd7 {[%emt 0:27:07]} 14. b4 {[%emt 0:00:51]} axb4 {[%emt 0:00:08]} 15. cxb4 {[%emt 0:00:01]} h6 {[%emt 0:18:25]} 16. a5 {[%emt 0:30:25]} b5 {[%emt 0:00:24]} 17. Na3 {[%emt 0:00:12]} Kh7 {[%emt 0:01:28]} 18. Qe2 {[%emt 0:08:02]} Rb8 {[%emt 0:00:23]} 19. Rac1 {[%emt 0:00:15]} f5 {[%emt 0:02:10]} 20. exf5 {[%emt 0:00:44]} gxf5 {[%emt 0:00:20]} 21. Nc2 {[%emt 0:01:08]} Qf6 {[%emt 0:13:55]} 22. Bc3 {[%emt 0:01:21]} Qf7 {[%emt 0:00:19]} 23. Rcd1 {[%emt 0:00:36]} Nf6 {[%emt 0:00:19]} 24. Nh4 {[%emt 0:00:49]} e4 {[%emt 0:02:17]} 25. Ne3 {[%emt 0:00:54]} f4 {[%emt 0:03:51]} 26. gxf4 {[%emt 0:02:53]} Rbe8 {[%emt 0:00:08]} 27. Nhf5 {[%emt 0:04:28]} Bh8 {[%emt 0:00:48]} 28. Ng3 {[%emt 0:00:34]} Rg8 {[%emt 0:01:16]} 29. Qc2 {[%emt 0:03:44]} h5 {[%emt 0:05:53]} 30. h4 {[%emt 0:00:05]} Qg6 {[%emt 0:04:17]} 31. Kf1 {[%emt 0:02:30]} Kh6 {[%emt 0:01:46]} 32. Qd2 {[%emt 0:04:27]} Kh7 {[%emt 0:00:32]} 33. Qc2 {[%emt 0:00:27]} Kh6 {[%emt 0:00:05]} 34. Bxf6 {[%emt 0:04:15]} Qxf6 {[%emt 0:01:17]} 35. Nxe4 {[%emt 0:00:18]} Qxf4 {[%emt 0:01:16]} 36. Ng5 {[%emt 0:00:21]} Rg6 {[%emt 0:01:16]} 37. Ne6 {[%emt 0:00:30]} 1/2-1/2